[Event "Indian Blitz Championship 2023"]
[Site "Nashik"]
[Date "2024.03.07"]
[Round "1.9"]
[White "Arnav Dhamija"]
[Black "Prraneeth Vuppala"]
[Result "0-1"]
[ECO "D02"]
[WhiteElo "1744"]
[BlackElo "2506"]
[Annotator "TA"]
[PlyCount "119"]
[EventDate "2024.03.07"]
[EventType "blitz"]
[EventCountry "IND"]
[SourceTitle "playchess.com"]
[Source "ChessBase"]
[SourceQuality "1"]
[TimeControl "180+2"]

{[%evp 11,119,-7,0,-11,-7,-6,5,5,9,0,8,0,0,-8,6,-8,8,-26,0,-14,-21,-23,-22,-22,7,-25,-12,-55,-61,-135,-131,-135,-129,-125,-120,-139,-123,-135,-141,-141,-94,-102,-77,-61,-62,-81,-59,-172,-125,-424,-419,-423,-441,-404,-394,-669,-363,-358,-358,-6283,-2237,-2637,-2641,-2556,-2052,-2607,-2260,-1492,-1164,-1520,-1054,-1287,-1132,-1549,-1468,-1916,-1512,-1635,-1462,-1315,-1266,-6378,-6058,-6087,-415,-397,-33,-1079,-957,-29984,-29985,-29986,-29986,-29986,-29985,-29988,-29989,-29989,-29990,-29990,-29991,-29991,-29992,-29992,-29993,-29993,-29994,-29994,-29994,-29994]} 1. d4 {[%emt 0:00:02]} d5 {[%emt 0:00:01]} 2. Bf4 {[%emt 0:00:01]} e6 {[%emt 0:00:04]} 3. e3 {[%emt 0:00:02]} Bd6 {[%emt 0:00:02]} 4. Bg3 {[%emt 0:00:05]} Nf6 {[%emt 0:00:04]} 5. Nf3 {[%emt 0:00:10]} O-O {[%emt 0:00:03]} 6. Bd3 {[%emt 0:00:05]} c5 {[%emt 0:00:02]} 7. c3 {[%emt 0:00:01]} b6 {[%emt 0:00:09]} 8. Nbd2 {[%emt 0:00:09]} Ba6 {[%emt 0:00:07]} 9. Bxa6 {[%emt 0:00:26] Die Stellung ist ausgeglichen.} Nxa6 {[%emt 0:00:02]} 10. Qe2 {[%emt 0:00:08]} Nc7 {[%emt 0:00:12][%cal Ba6c7,Bc7e8,Be8f6,Bf6e4][%mdl 32]} 11. Ne5 {[%emt 0:00:03]} Nce8 {[%emt 0:00:16]} 12. O-O {[%emt 0:00:12]} Nd7 {[%emt 0:00:09]} 13. f4 {[%emt 0:00:14]} f6 {[%emt 0:00:05]} 14. Nd3 {[%emt 0:00:13]} (14. Bh4 {scheint wilder zu sein.} Qc7 15. Qg4 f5 16. Qe2) 14... f5 {[%emt 0:00:13]} 15. Nf3 {[%emt 0:00:15]} Nef6 {[%emt 0:00:02]} 16. Bh4 {[%emt 0:00:08]} Qc7 {[%emt 0:00:19]} (16... c4 {vereinfacht} 17. Nde5 Qc7 18. Nxd7 Nxd7 19. h3 b5) 17. Nde5 {[%emt 0:00:09]} Ne4 {[%emt 0:00:05]} (17... c4 {vereinfacht} 18. Nxd7 Nxd7 19. h3 b5) 18. Ng5 {[%emt 0:00:09]} Rae8 {[%emt 0:00:12]} (18... Nxg5 {vereinfacht} 19. Bxg5 c4 20. a4 a6) 19. Qb5 {[%emt 0:00:32]} (19. Nxe4 {vereinfacht} fxe4 20. b3 Rc8 21. Rad1) 19... Ndf6 {[%emt 0:00:48]} 20. Rf3 {[%emt 0:00:19]} (20. Ngf3 $15) 20... Nxg5 {[%emt 0:00:06]} 21. Bxg5 {[%emt 0:00:12]} Ne4 {[%emt 0:00:02]} 22. Bh4 {[%emt 0:00:06]} Bxe5 {[%emt 0:00:03]} 23. fxe5 {[%emt 0:00:02]} h6 {[%emt 0:00:14]} 24. Qe2 {[%emt 0:00:03]} a5 {[%emt 0:00:06]} 25. Raf1 {[%emt 0:00:02]} cxd4 {[%emt 0:00:16]} (25... g5 $142 26. Be1 c4) 26. exd4 $17 {[%emt 0:00:01]} Qc4 {[%emt 0:00:04]} 27. Qxc4 {[%emt 0:00:03]} dxc4 {[%emt 0:00:01]} 28. Be1 {[%emt 0:00:02] Wehrt Nd2 ab. Schwarz führt seinen Vorteil zum Gewinn.} b5 {[%emt 0:00:02] Schwarz steht aktiver.} 29. g4 {[%emt 0:00:02]} fxg4 $19 {[%emt 0:00:04]} 30. Rxf8+ {[%emt 0:00:02][%mdl 8192]} (30. Rf4 $17 {ist der einzige Weg für Weiss..} Ng5 (30... Rxf4 $2 31. Rxf4 Ng5 32. Rxg4 $17) 31. Rxg4) 30... Rxf8 {[%emt 0:00:01]} 31. Rxf8+ {[%emt 0:00:03]} Kxf8 {[%emt 0:00:02][%mdl 4096] Endspiel. KB-KN} 32. Kg2 {[%emt 0:00:02]} h5 {[%emt 0:00:01]} 33. h3 $2 {[%emt 0:00:01]} (33. a3) 33... Kf7 {[%emt 0:00:03]} 34. hxg4 {[%emt 0:00:02]} hxg4 {[%emt 0:00:00]} 35. b3 $2 {[%emt 0:00:01]} (35. Kh2) 35... a4 {[%emt 0:00:03]} (35... cxb3 $142 36. axb3 a4) 36. bxa4 {[%emt 0:00:02]} bxa4 {[%emt 0:00:01]} 37. Kf1 {[%emt 0:00:03]} Kg6 {[%emt 0:00:01]} 38. Ke2 {[%emt 0:00:02]} Kf5 {[%emt 0:00:03] ...a3 ist eine echte Drohung.} 39. Ke3 {[%emt 0:00:01]} Ng5 {[%emt 0:00:03] Droht stark ...Ne4.} 40. a3 {[%emt 0:00:01]} Nf7 {[%emt 0:00:03]} 41. Bh4 {[%emt 0:00:02]} g5 {[%emt 0:00:01]} 42. Bg3 {[%emt 0:00:02]} Nd8 {[%emt 0:00:01]} 43. d5 {[%emt 0:00:03]} exd5 {[%emt 0:00:02]} 44. Kd4 {[%emt 0:00:00]} Ke6 {[%emt 0:00:04]} 45. Kc5 {[%emt 0:00:09]} Nf7 {[%emt 0:00:02][%cal Of7h6] ...Nh6! wäre nun fies.} 46. Kb4 {[%emt 0:00:00]} Nxe5 {[%emt 0:00:02]} 47. Kxa4 {[%emt 0:00:00]} Nd3 {[%emt 0:00:05]} (47... d4 $142 {( -> ...d3)} 48. cxd4 Nd3) 48. Kb5 {[%emt 0:00:00]} Nb2 $2 {[%emt 0:00:03]} ({Günstiger ist} 48... Nc1 $19 {Und ...Ne2 würde nun gewinnen.} 49. a4 Ne2) 49. a4 $2 {[%emt 0:00:00][%mdl 8192] [#]} (49. Kc5 $15 Nd3+ 50. Kb5) 49... d4 $1 {[%emt 0:00:02]} 50. cxd4 {[%emt 0:00:06]} (50. a5 d3) 50... c3 {[%emt 0:00:02] Schwarz setzt Matt.} 51. Be1 {[%emt 0:00:02]} c2 {[%emt 0:00:02]} 52. Bd2 {[%emt 0:00:01] [#]} Nxa4 $1 {[%emt 0:00:02][%mdl 512]} 53. Kxa4 {[%emt 0:00:01] KB-K3P} (53. Kc4 g3) 53... g3 {[%emt 0:00:01]} 54. Kb3 {[%emt 0:00:03]} g2 {[%emt 0:00:00]} 55. Be3 {[%emt 0:00:04] [#]} g1=Q $1 {[%emt 0:00:02][%mdl 512]} 56. Bxg1 {[%emt 0:00:01]} c1=Q {[%emt 0:00:09]} ({Und nicht} 56... c1=B 57. Kc4 $11) 57. d5+ {[%emt 0:00:02]} Kxd5 {[%emt 0:00:00]} 58. Bf2 {[%emt 0:00:02]} Qc4+ {[%emt 0:00:00]} 59. Kb2 {[%emt 0:00:01]} Qe2+ {[%emt 0:00:00]} 60. Kc3 {[%emt 0:00:07] Gewichteter Fehlerwert: Weiß=1.00/Schwarz=0.56.  Verlustzug:     	Weiß=2     	---        Fehler:       	Weiß=4     	Schwarz=2     Ungenau:       	Weiß=4     	Schwarz=3     OK:         	Weiß=6     	Schwarz=7     Bester:       	Weiß=1     	---        Brilliant:      	---       	Schwarz=1} 0-1

[Event "Indian Blitz Championship 2023"]
[Site "Nashik"]
[Date "2024.03.07"]
[Round "1.10"]
[White "Kushagra Mohan"]
[Black "Chandwani Prateek"]
[Result "1-0"]
[ECO "B46"]
[WhiteElo "2351"]
[BlackElo "1605"]
[Annotator "TA"]
[PlyCount "54"]
[EventDate "2024.03.07"]
[EventType "blitz"]
[EventCountry "IND"]
[SourceTitle "playchess.com"]
[Source "ChessBase"]
[SourceQuality "1"]
[TimeControl "180+2"]

{[%evp 14,54,39,24,76,79,93,92,149,112,302,131,147,145,142,132,140,141,225,216,382,418,493,77,584,507,504,504,692,642,645,632,868,777,1139,1129,2502,2550,29989,29990,29991,29992,29986]} 1. e4 {[%emt 0:00:01]} c5 {[%emt 0:00:01]} 2. Nc3 {[%emt 0:00:01]} e6 {[%emt 0:00:02]} 3. Nf3 {[%emt 0:00:01]} Nc6 {[%emt 0:00:01]} 4. d4 {[%emt 0:00:04]} cxd4 {[%emt 0:00:02]} 5. Nxd4 {[%emt 0:00:00]} a6 {[%emt 0:00:05]} 6. Nxc6 {[%emt 0:00:02]} bxc6 {[%emt 0:00:02]} 7. Bd3 {[%emt 0:00:02]} d5 {[%emt 0:00:00]} 8. O-O {[%emt 0:00:01]} d4 {[%emt 0:00:08]} (8... Bb7 $11) 9. Ne2 $16 {[%emt 0:00:05]} c5 {[%emt 0:00:14]} 10. c3 {[%emt 0:00:01]} e5 {[%emt 0:00:03]} (10... dxc3 $142 11. Nxc3 (11. Qa4+ $2 Bd7 $17) 11... Bd6) 11. f4 {[%emt 0:00:02]} Qb6 $2 {[%emt 0:00:15]} (11... Bd6 $16) 12. Kh1 {[%emt 0:00:05]} (12. Bc4 $18 {has better winning chances.}) 12... Bd6 {[%emt 0:00:14]} 13. fxe5 {[%emt 0:00:03]} Bxe5 {[%emt 0:00:01]} 14. cxd4 {[%emt 0:00:05]} cxd4 {[%emt 0:00:03]} 15. Bf4 {[%emt 0:00:01]} Bxf4 {[%emt 0:00:24]} (15... Qd6 $16 {might work better.}) 16. Nxf4 $18 {[%emt 0:00:01]} (16. Rxf4 $6 Ne7 $16) 16... Nf6 {[%emt 0:00:02]} (16... Ne7 17. Qa4+ Bd7) 17. e5 {[%emt 0:00:05]} Ng4 {[%emt 0:00:04][%cal Oe8g8]} 18. Nd5 $2 {[%emt 0:00:02]} (18. e6 $18 {is more deadly. Strongly threatening Qa4+.} O-O 19. Qxg4 Bxe6 20. Nxe6 Qxe6 21. Qxd4) 18... Qc5 $2 {[%emt 0:01:08][%mdl 8192]} (18... Qh6 $16 {prevents the worst.} 19. h3 (19. Qa4+ $2 Bd7 $19) 19... O-O) 19. Be4 {[%emt 0:00:09][%cal Bd3e4,Be4a8,Ba8d5][%mdl 32] [#] Rc1 would now be deadly.} O-O {[%emt 0:00:06][%cal Oc8e6]} 20. Rc1 {[%emt 0:00:06]} Qa5 {[%emt 0:00:11]} 21. Ne7+ {[%emt 0:00:11][%cal Bd5e7,Be7c8,Bc8d6,Bd6f7][%mdl 32]} Kh8 {[%emt 0:00:02][%cal Oa5e5] And now ...Qxe5! would win.} 22. Nxc8 {[%emt 0:00:06]} (22. Bxa8 Qxe5 23. g3 (23. Nxc8 $2 Qxh2#) 23... Qxe7 $16) 22... Ne3 {[%emt 0:00:03][%cal Bg4e3,Be3f1,Bf1d2][%mdl 32]} 23. Qxd4 {[%emt 0:00:06]} (23. Bxa8 Nxd1 24. e6 (24. Rfxd1 Qxe5 25. Bf3 Re8 $14) 24... Ne3 (24... Nxb2 $2 {perishes.} 25. Rxf7 Rg8 26. e7 $18) 25. Rxf7 (25. e7 $2 Re8 $19) 25... Rg8 $11 (25... Rxf7 $2 26. exf7 Qd8 27. Nd6 $18)) 23... Nxf1 {[%emt 0:00:04]} 24. Bxa8 {[%emt 0:00:03]} Nd2 {[%emt 0:00:07]} 25. Bd5 {[%emt 0:00:10] [#] Nd6 would kill now.} Rd8 {[%emt 0:00:11]} 26. Nd6 {[%emt 0:00:02]} Rf8 {[%emt 0:00:18]} 27. Nxf7+ {[%emt 0:00:03]} Kg8 {[%emt 0:00:05] Weighted Error Value: White=0.50/Black=1.61.  Loses game:     	---       	Black=2      Missed win:     	White=2     	---        Mistake:       	---       	Black=3      Inaccurate:     	---       	Black=1      OK:         	White=4     	Black=2      Best:        	White=2     	---} 1-0

[Event "Indian Blitz Championship 2023"]
[Site "Nashik"]
[Date "2024.03.07"]
[Round "2.1"]
[White "Ghosh, Diptayan"]
[Black "Balkishan, A.."]
[Result "1-0"]
[ECO "A34"]
[WhiteElo "2559"]
[BlackElo "2108"]
[Annotator "TA"]
[PlyCount "83"]
[EventDate "2024.03.07"]
[EventType "blitz"]
[EventCountry "IND"]
[SourceTitle "playchess.com"]
[Source "ChessBase"]
[SourceQuality "1"]
[TimeControl "180+2"]

{[%evp 9,83,14,20,5,0,0,29,31,48,32,47,28,0,6,43,41,45,45,110,84,121,109,109,120,158,93,93,93,100,112,125,108,140,152,214,114,118,80,97,66,290,289,346,311,431,405,409,403,400,392,479,443,476,469,454,449,544,531,541,532,365,539,584,579,818,818,803,817,1200,1158,1100,1062,965,958,936,917]} 1. Nf3 {[%emt 0:00:03]} c5 {[%emt 0:00:01]} 2. c4 {[%emt 0:00:01]} Nc6 {[%emt 0:00:02]} 3. Nc3 {[%emt 0:03:04]} e5 {[%emt 0:00:02]} 4. e3 {[%emt 0:00:00]} Nf6 {[%emt 0:00:04]} 5. d4 {[%emt 0:00:00]} e4 {[%emt 0:00:05]} 6. d5 {[%emt 0:00:00]} exf3 {[%emt 0:00:48]} 7. dxc6 {[%emt 0:00:00]} bxc6 {[%emt 0:00:55]} 8. Qxf3 {[%emt 0:00:00] Weiß hat minimalen Vorteil.} Be7 {[%emt 0:00:13]} 9. e4 {[%emt 0:00:00] Schwarz muss nun e5 beachten.} d6 {[%emt 0:00:04]} 10. Bd3 {[%emt 0:00:00]} O-O {[%emt 0:00:02]} 11. O-O {[%emt 0:00:00]} Be6 {[%emt 0:00:11]} 12. Bf4 {[%emt 0:00:00]} Nd7 {[%emt 0:00:24]} 13. Rad1 {[%emt 0:00:00]} Qb6 {[%emt 0:00:01]} (13... Ne5 $14 14. Qg3 Ng6) 14. b3 {[%emt 0:00:00]} Rfd8 {[%emt 0:00:07]} 15. Be2 {[%emt 0:00:00]} Ne5 {[%emt 0:00:02]} 16. Qg3 {[%emt 0:00:00]} Bf6 {[%emt 0:00:02]} 17. Bg5 {[%emt 0:00:00]} ({Vorzuziehen ist} 17. Bd2) 17... Bxg5 $16 {[%emt 0:00:03]} 18. Qxg5 {[%emt 0:00:00]} f6 {[%emt 0:00:02]} 19. Qg3 {[%emt 0:00:00]} Qa5 {[%emt 0:00:01]} 20. Rd2 {[%emt 0:00:00]} Nf7 {[%emt 0:00:20]} 21. Rfd1 {[%emt 0:00:00] Weiß steht aktiver.} f5 {[%emt 0:00:02] [#]} (21... Kh8 $16 22. f4 f5) 22. exf5 {[%emt 0:00:00]} (22. Bh5 $1 $18) 22... Bxf5 {[%emt 0:00:01]} 23. Na4 {[%emt 0:00:00]} Rac8 {[%emt 0:00:10]} 24. h3 {[%emt 0:00:00]} Bg6 $2 {[%emt 0:00:01] [#] Das Aus für Schwarz.} (24... Re8 $14) 25. Bg4 $1 $18 {[%emt 0:00:00]} Rb8 {[%emt 0:00:01]} 26. Be6 {[%emt 0:00:00]} Qc7 {[%emt 0:00:04]} 27. Rxd6 {[%emt 0:00:00]} Rxd6 {[%emt 0:00:02]} 28. Qxd6 {[%emt 0:00:00]} Qxd6 {[%emt 0:00:02]} 29. Rxd6 {[%emt 0:00:00]} Re8 {[%emt 0:00:03]} 30. Rxc6 {[%emt 0:00:00]} ({Jedoch nicht} 30. Nxc5 Kf8) 30... Kf8 {[%emt 0:00:03]} 31. Nxc5 {[%emt 0:00:00]} Ne5 {[%emt 0:00:02]} 32. Rc7 {[%emt 0:00:00]} Nd3 {[%emt 0:00:03]} 33. Nxd3 {[%emt 0:00:11]} Rxe6 {[%emt 0:00:00][%mdl 4096] Endspiel. KRB-KRN} 34. Nf4 {[%emt 0:00:01]} Re1+ {[%emt 0:00:01]} 35. Kh2 {[%emt 0:00:01]} Bb1 {[%emt 0:00:01] Weiß steht klar auf Gewinn.} 36. Rxa7 {[%emt 0:00:02]} Rd1 {[%emt 0:00:01]} 37. b4 {[%emt 0:00:05]} Rd2 {[%emt 0:00:01]} 38. b5 {[%emt 0:00:05]} Bxa2 {[%emt 0:00:02]} 39. b6 {[%emt 0:00:07]} Bxc4 {[%emt 0:00:03]} 40. b7 {[%emt 0:00:01]} Rb2 {[%emt 0:00:04]} 41. Ra8+ {[%emt 0:00:01]} Ke7 {[%emt 0:00:01]} 42. b8=Q {[%emt 0:00:03] Gewichteter Fehlerwert: Weiß=0.16 (sehr präzise) /Schwarz=0.44.  Verlustzug:     	---       	Schwarz=1     Fehler:       	Weiß=2     	Schwarz=2     Ungenau:       	Weiß=2     	Schwarz=6     OK:         	Weiß=11    	Schwarz=6     Bester:       	Weiß=1     	Schwarz=1     Stark:        	Weiß=1     	---} 1-0

[Event "Indian Blitz Championship 2023"]
[Site "Nashik"]
[Date "2024.03.07"]
[Round "2.2"]
[White "Arindam, Mukherjee"]
[Black "Mitrabha, Guha"]
[Result "0-1"]
[ECO "A49"]
[WhiteElo "1990"]
[BlackElo "2526"]
[Annotator "TA"]
[PlyCount "98"]
[EventDate "2024.03.07"]
[EventType "blitz"]
[EventCountry "IND"]
[SourceTitle "playchess.com"]
[Source "ChessBase"]
[SourceQuality "1"]
[TimeControl "180+2"]

{[%evp 11,98,8,10,-16,-11,-17,-12,-41,-31,-48,-17,-20,0,0,10,-1,5,-18,-15,-49,-59,-78,-75,-147,-96,-113,-36,-37,-22,-18,-24,-25,-10,-8,-8,-44,-25,-35,-36,-82,-84,-86,-4,-207,-206,-238,-236,-241,-233,-265,-262,-427,-373,-379,-337,-653,-633,-769,-210,-209,-209,-267,-209,-256,-251,-297,-273,-333,-221,-217,0,-281,-232,-446,-304,-320,-280,-271,-272,-265,-266,-4910,-4914,-29978,-29979,-29975,-638,-29984,-29985]} 1. d4 {[%emt 0:00:03]} Nf6 {[%emt 0:00:02]} 2. Nf3 {[%emt 0:00:02]} b6 {[%emt 0:00:01]} 3. g3 {[%emt 0:00:10]} Bb7 {[%emt 0:00:01]} 4. Bg2 {[%emt 0:00:01]} c5 {[%emt 0:00:00]} 5. c3 {[%emt 0:00:05]} g6 {[%emt 0:00:02]} 6. O-O {[%emt 0:00:02]} Bg7 {[%emt 0:00:01]} 7. Ne5 {[%emt 0:00:17]} Bxg2 {[%emt 0:00:03]} 8. Kxg2 {[%emt 0:00:01]} O-O {[%emt 0:00:02]} 9. a4 {[%emt 0:00:15] The position is equal.} d6 {[%emt 0:00:04]} (9... Qc8 {is interesting.} 10. Bg5 Ne4 11. Bf4 d6) 10. Nf3 {[%emt 0:00:01]} Nbd7 {[%emt 0:00:01]} 11. Qd3 {[%emt 0:00:10]} Qc7 {[%emt 0:00:08]} 12. e4 {[%emt 0:00:06]} Qb7 {[%emt 0:00:10]} 13. d5 {[%emt 0:00:20]} a6 {[%emt 0:00:01]} 14. h3 {[%emt 0:00:04]} b5 {[%emt 0:00:03]} 15. Bg5 {[%emt 0:00:21]} c4 {[%emt 0:00:16]} 16. Qe2 {[%emt 0:01:36]} Nc5 {[%emt 0:00:01][%csl LRa4,LRe4]} 17. Bxf6 {[%emt 0:00:00]} (17. Nbd2 $142) 17... Bxf6 {[%emt 0:00:01]} ({Black should try} 17... exf6 18. Nbd2 f5 (18... bxa4 19. Nxc4 Rad8 20. Qc2 $11) 19. axb5 axb5 20. exf5 Rae8 (20... Qxd5 21. Rxa8 Rxa8 22. fxg6 $17) (20... gxf5 21. Nh4 $17)) 18. Nbd2 $17 {[%emt 0:00:00]} Nxa4 {[%emt 0:00:05] Black is more active.} (18... Rfc8 $17 19. axb5 axb5) 19. Nxc4 $1 $15 {[%emt 0:00:00]} Nxc3 {[%emt 0:00:03]} 20. bxc3 {[%emt 0:00:00]} bxc4 {[%emt 0:00:01]} 21. Rfb1 {[%emt 0:00:00]} Qc7 {[%emt 0:00:02]} 22. Ra4 {[%emt 0:00:00]} Rfc8 {[%emt 0:01:06]} 23. Rbb4 {[%emt 0:00:00][%cal Rb4c4]} a5 $36 {[%emt 0:00:11][%mdl 2048] Black is more active.} 24. Rxc4 {[%emt 0:00:00]} Qb6 {[%emt 0:00:01]} 25. e5 {[%emt 0:00:02]} (25. Rxc8+ $15 Rxc8 26. c4) 25... dxe5 {[%emt 0:00:07]} 26. Nxe5 {[%emt 0:00:01]} Rxc4 {[%emt 0:00:04]} (26... Qd6 $17 27. Ng4 Qxd5+ 28. Qe4 Qxe4+ 29. Rxe4 Rxc3 (29... Bxc3 30. Rxe7 Kg7 31. Rf4 $17) 30. Nxf6+ exf6) 27. Rxc4 $2 {[%emt 0:00:01]} (27. Nd7 $11 Qb5 28. Nxf6+ Kg7 29. Rxc4 (29. Qxc4 Qxc4 $15) 29... exf6 30. Qe4) 27... Qd6 $19 {[%emt 0:00:11][%csl LRd5,LRe5]} 28. Ng4 {[%emt 0:00:14]} Qxd5+ {[%emt 0:00:04]} 29. Kh2 {[%emt 0:00:00]} Bg7 {[%emt 0:00:21]} 30. Rf4 {[%emt 0:00:07]} h5 {[%emt 0:00:11]} (30... Bxc3 $2 31. Nh6+ Kh8 (31... Kg7 $2 32. Rxf7+ Kxh6 33. Qxe7 $18) 32. Nxf7+ (32. Qxe7 f5 $11) 32... Kg8 33. Qxe7 $18) 31. c4 $2 {[%emt 0:00:00]} (31. Ne3 Qb7 32. Qc2) 31... Qe6 {[%emt 0:00:11]} 32. Ne3 {[%emt 0:00:00]} a4 {[%emt 0:00:02] [#] Threatens to win with ...a3.} 33. Qa2 {[%emt 0:00:03]} (33. Qf3 Ra5 34. Qd1) 33... Bh6 {[%emt 0:00:15]} 34. Rf3 {[%emt 0:00:01]} Bxe3 $2 {[%emt 0:00:02]} (34... Qe4 35. Kg2 Bxe3 36. fxe3 Rb8) 35. Rxe3 {[%emt 0:00:01][%mdl 4096] Endgame. KQR-KQR} Qd6 {[%emt 0:00:01]} 36. Rc3 {[%emt 0:00:03]} Qc5 {[%emt 0:00:03]} 37. Kg2 {[%emt 0:00:01]} a3 {[%emt 0:00:01]} 38. h4 {[%emt 0:00:01]} Kh7 {[%emt 0:00:02]} 39. Rc2 {[%emt 0:00:02]} Qc6+ {[%emt 0:00:03]} 40. Kh2 {[%emt 0:00:01]} Qc5 $2 {[%emt 0:00:03]} ({Black should play} 40... Rd8 $19 {...Rd1 would now be deadly.} 41. c5 Qf3) 41. Rc3 $2 {[%emt 0:00:00][%mdl 8192]} (41. Kg2 $1 $11 {and White stays safe.} Rd8 42. Qb3) 41... e5 {[%emt 0:00:03]} 42. Rc2 $2 {[%emt 0:00:01]} (42. Rd3) 42... e4 {[%emt 0:00:01]} 43. Rc3 {[%emt 0:00:01]} Ra7 {[%emt 0:00:01]} 44. Re3 {[%emt 0:00:02]} f5 {[%emt 0:00:05]} 45. Re2 {[%emt 0:00:00]} Rb7 {[%emt 0:00:02][%cal Of5f4] [#] Repels Qb3. ...f4! is the strong threat.} 46. Rd2 $2 {[%emt 0:00:03]} (46. Kg2) 46... e3 {[%emt 0:00:04]} 47. fxe3 {[%emt 0:00:01]} Qxe3 {[%emt 0:00:01]} 48. Rg2 {[%emt 0:00:02]} Qc3 {[%emt 0:00:02]} (48... f4 $142 49. c5 Rb3 (49... Qxc5 $2 50. gxf4 Qc1 51. Qf2 $19) 50. gxf4 Qxf4+ 51. Kg1 Rc3 52. Qd2 Rc1+ (52... Qxh4 $2 {loses.} 53. Qxc3 Qf4 54. Qxa3 $18) 53. Qxc1 Qxc1+ 54. Kh2 Qf4+ (54... Qxc5 {gets mated.} 55. Kg3 Qe3+ 56. Kh2 Qf4+ 57. Kh3 Qc4 58. Rg3 Qf1+ 59. Kh2 a2 60. Ra3 a1=R 61. Rxa1 Qxa1 62. Kg2 Qe1 63. Kf3 g5 64. hxg5 Kg6 65. Kg2 h4 66. Kf3 Kxg5 67. Kg2 Qe2+ 68. Kg1 h3 69. Kh1 Qg2#) 55. Kh1 Qxh4+ 56. Kg1 Qc4 57. Kf2 a2 (57... Qxc5+ {is a self mate.} 58. Kg3 Qe5+ 59. Kf3 Qd5+ 60. Kf2 a2 61. Rg1 Qd4+ 62. Kg2 h4 63. Rf1 a1=Q 64. Rxa1 Qxa1 65. Kf2 Qe5 66. Kf3 Qe1 67. Kf4 Qe2 68. Kg5 Qf2 69. Kg4 Qg3#) 58. Rg1 Qxc5+ 59. Kg2 Qxg1+ 60. Kxg1 a1=Q+ (60... a1=B 61. Kh1 Be5 62. Kg1 g5 63. Kh1 h4 64. Kg1 g4 65. Kg2 h3+ 66. Kf2 g3+ 67. Kf1 g2+ 68. Kf2 Kg6 69. Ke3 g1=Q+ 70. Ke4 Qd4+ 71. Kf3 Qd3+ 72. Kf2 Bg3+ 73. Kg1 Qd1#) 61. Kf2 Qc3 62. Kg2 h4 (62... Qd2+ 63. Kf3 Qd3+ 64. Kf4 Qe2 65. Kg3 Kg7 66. Kh3 h4 67. Kxh4 Qf3 68. Kg5 Qg3#) 63. Kf2 h3 64. Ke2 h2 65. Kf2 h1=Q 66. Ke2 Qhf3#) 49. Rc2 {[%emt 0:00:04]} Rb2 {[%emt 0:00:04] Weighted Error Value: White=0.97/Black=0.54.  Loses game:     	White=2     	---        Missed win:     	---       	Black=1      Mistake:       	White=6     	Black=3      Inaccurate:     	White=4     	Black=4      OK:         	White=7     	Black=12     Best:        	White=3     	Black=4      Strong:       	White=1     	---} 0-1